bitfinex/quotes_BTCUSD_20250222
["timestamp","ask_amount","ask_price","bid_price","bid_amount"]
[1740213931785,0.83144438,96368.0,96367.0,0.0008504]
[1740213931904,0.84598523,96368.0,96367.0,0.0018504]
[1740213932686,0.84598523,96368.0,96367.0,0.0008504]
[1740213933022,0.84698523,96368.0,96367.0,0.0008504]
[1740213933790,0.84898523,96368.0,96367.0,0.0008504]
[1740213934198,0.84698523,96368.0,96367.0,0.0008504]
[1740213934436,0.84598523,96368.0,96367.0,0.0008504]
[1740213934641,0.84798523,96368.0,96367.0,0.0008504]
[1740213935234,0.84898523,96368.0,96367.0,0.0008504]
[1740213943306,0.84898523,96368.0,96367.0,4e-07]
[1740213943733,0.39689485,96367.0,96366.0,28.27819954]
[1740213943940,0.60218623,96367.0,96366.0,28.27819954]
[1740213944915,0.60418623,96367.0,96366.0,28.27819954]
[1740213945114,0.60518623,96367.0,96366.0,28.27819954]
[1740213947058,0.92568623,96367.0,96366.0,28.27819954]
[1740213947262,0.94568623,96367.0,96366.0,28.27819954]
[1740213954262,0.95110494,96367.0,96366.0,28.27819954]
[1740213954461,0.95850494,96367.0,96366.0,28.27819954]
[1740213957065,0.96020634,96367.0,96366.0,28.27819954]
[1740213961346,0.94020634,96367.0,96366.0,28.27819954]
[1740213961576,0.96020634,96367.0,96366.0,28.27819954]
[1740213963723,0.94020634,96367.0,96366.0,28.27819954]
[1740213964059,0.96020634,96367.0,96366.0,28.27819954]
[1740213964523,0.95280634,96367.0,96366.0,28.27819954]
[1740213964704,0.96020634,96367.0,96366.0,28.27819954]
[1740213976197,0.94020634,96367.0,96366.0,28.27819954]
[1740213993867,0.98020634,96367.0,96366.0,26.58277154]
[1740213994810,1.02990634,96367.0,96366.0,26.58277154]
[1740213995645,1.02790634,96367.0,96366.0,26.58277154]
[1740213996067,1.03390634,96367.0,96366.0,26.58377154]
[1740213996282,1.04090634,96367.0,96366.0,26.58477154]
[1740213996522,1.03390634,96367.0,96366.0,26.58377154]
[1740213996745,1.04090634,96367.0,96366.0,26.58477154]
[1740213997282,1.03350634,96367.0,96366.0,26.58477154]
[1740213997518,0.89454634,96367.0,96366.0,26.58477154]
[1740213997655,0.91454634,96367.0,96366.0,26.58477154]
[1740213998052,0.89454634,96367.0,96366.0,26.58477154]
[1740213998801,0.89495219,96367.0,96366.0,26.58477154]
[1740213999023,0.90239219,96367.0,96366.0,26.58477154]
[1740213999217,0.92239219,96367.0,96366.0,26.58477154]
[1740214001061,0.90239219,96367.0,96366.0,26.58477154]
[1740214003452,0.92239219,96367.0,96366.0,26.60512942]
[1740214006021,0.90239219,96367.0,96366.0,26.60512942]
[1740214006257,0.92239219,96367.0,96366.0,26.60512942]
[1740214006872,0.90239219,96367.0,96366.0,26.60512942]
[1740214010803,0.90239219,96367.0,96366.0,26.58477154]
[1740214013374,0.92239219,96367.0,96366.0,26.58477154]
[1740214014567,0.91495219,96367.0,96366.0,26.58477154]
[1740214014772,0.92239219,96367.0,96366.0,26.58477154]
[1740214015176,0.90239219,96367.0,96366.0,26.58477154]
[1740214015360,0.92239219,96367.0,96366.0,26.58477154]
[1740214021239,1.00309219,96367.0,96366.0,26.58477154]
[1740214023876,1.03520299,96367.0,96366.0,26.58477154]
[1740214024634,1.00309219,96367.0,96366.0,26.58477154]
[1740214027703,1.00309219,96367.0,96366.0,26.37810222]
[1740214027904,1.05029219,96367.0,96366.0,26.37810222]
[1740214028313,1.05029219,96367.0,96366.0,25.25905644]
[1740214028494,6.10029219,96367.0,96366.0,24.58855944]
[1740214028922,6.10029219,96367.0,96366.0,24.53339944]
[1740214029308,6.13240299,96367.0,96366.0,24.50220002]
[1740214029752,6.10029219,96367.0,96366.0,24.50220002]
[1740214029932,5.96449219,96367.0,96366.0,24.50220002]
[1740214030673,5.96449219,96367.0,96366.0,24.18731002]
[1740214032400,5.96449219,96367.0,96366.0,23.47696002]
[1740214032608,5.99660299,96367.0,96366.0,23.47307053]
[1740214032809,5.98916299,96367.0,96366.0,23.47307053]
[1740214033022,5.99660299,96367.0,96366.0,23.47307053]
[1740214034205,5.99660299,96367.0,96366.0,23.29855381]
[1740214036261,5.99660299,96367.0,96366.0,23.26875381]
[1740214038652,5.99660299,96367.0,96366.0,23.26374262]
[1740214041112,5.99660299,96367.0,96366.0,23.25794262]
[1740214041726,5.99660299,96367.0,96366.0,23.23484262]
[1740214042038,5.99660299,96367.0,96366.0,23.20585263]
[1740214042177,5.99660299,96367.0,96366.0,23.15138263]
[1740214043398,5.99660299,96367.0,96366.0,23.14853343]
[1740214044264,5.99656299,96367.0,96366.0,23.08558344]
[1740214046209,5.99656299,96367.0,96366.0,23.06264197]
[1740214047324,5.96445219,96367.0,96366.0,23.06264197]
[1740214049856,1.05025219,96367.0,96366.0,23.06264197]
[1740214050263,6.13236299,96367.0,96366.0,23.06264197]
[1740214057239,6.15186399,96367.0,96366.0,23.06264197]
[1740214057445,6.17333331,96367.0,96366.0,23.06264197]
[1740214059465,6.14122251,96367.0,96366.0,23.06264197]
[1740214059780,6.17304051,96367.0,96366.0,23.05433198]
[1740214060409,3.58734051,96367.0,96366.0,23.05433198]
[1740214060615,2.69062251,96367.0,96366.0,23.05433198]
[1740214061032,2.67112151,96367.0,96366.0,23.05433198]
[1740214061208,2.67112151,96367.0,96366.0,23.04992214]
[1740214061379,2.64965219,96367.0,96366.0,23.04992214]
[1740214061778,2.64965219,96367.0,96366.0,23.0331213]
[1740214062420,2.64225219,96367.0,96366.0,23.0331213]
[1740214062739,2.64965219,96367.0,96366.0,23.0331213]
[1740214063596,2.64965219,96367.0,96366.0,23.0305006]
[1740214064343,2.64965219,96367.0,96366.0,23.01759077]
[1740214064700,2.68147019,96367.0,96366.0,23.01379058]
[1740214064899,2.64965219,96367.0,96366.0,23.01379058]
[1740214065099,2.64965219,96367.0,96366.0,22.99627575]
[1740214065314,2.64965219,96367.0,96366.0,22.99008874]
[1740214066416,2.64965219,96367.0,96366.0,22.98119623]
[1740214068242,2.74285367,96367.0,96366.0,22.98119623]
[1740214068671,2.74285367,96367.0,96366.0,22.97076088]
[1740214069096,2.74285367,96367.0,96366.0,22.91146089]
[1740214069309,2.74285367,96367.0,96366.0,22.89913451]
[1740214069907,2.77467167,96367.0,96366.0,22.89913451]
[1740214071979,2.74285367,96367.0,96366.0,22.89913451]
[1740214072393,2.77467167,96367.0,96366.0,22.89913451]
[1740214076519,2.74285367,96367.0,96366.0,22.89913451]
[1740214078477,2.64965219,96367.0,96366.0,22.89913451]
[1740214080910,2.64965219,96367.0,96366.0,22.81166281]
[1740214083442,1.00305219,96367.0,96366.0,22.81166281]
[1740214083656,6.05305219,96367.0,96366.0,22.81166281]
[1740214084600,5.03785219,96367.0,96366.0,22.81166281]
[1740214084832,4.52535219,96367.0,96366.0,22.81166281]
[1740214085413,4.45135219,96367.0,96366.0,22.81166281]
[1740214085848,3.80375219,96367.0,96366.0,22.81166281]
[1740214086668,3.12485219,96367.0,96366.0,22.81166281]
[1740214087045,2.65115219,96367.0,96366.0,22.81166281]
[1740214087235,2.65855219,96367.0,96366.0,22.81166281]
[1740214087427,2.52975219,96367.0,96366.0,22.81166281]
[1740214088202,1.61295219,96367.0,96366.0,22.81166281]
[1740214088561,0.77776565,96367.0,96366.0,22.81166281]
[1740214088723,0.78516565,96367.0,96366.0,22.81166281]
[1740214089587,0.7997065,96367.0,96366.0,22.81166281]
[1740214089811,0.8123065,96367.0,96366.0,22.81166281]
[1740214090016,0.7997065,96367.0,96366.0,22.81166281]
[1740214090226,0.88781134,96367.0,96366.0,22.81166281]
[1740214090356,0.90781134,96367.0,96366.0,22.81166281]
[1740214090562,0.91495219,96367.0,96366.0,22.81166281]
[1740214090761,0.92235219,96367.0,96366.0,22.81166281]
[1740214094392,0.90235219,96367.0,96366.0,22.81166281]
[1740214094591,0.92235219,96367.0,96366.0,22.81166281]
[1740214108448,0.90235219,96367.0,96366.0,22.81166281]
[1740214108654,0.92235219,96367.0,96366.0,22.81166281]
[1740214112451,0.91495219,96367.0,96366.0,22.81166281]
[1740214112645,0.92235219,96367.0,96366.0,22.81166281]
[1740214117735,0.90235219,96367.0,96366.0,22.81166281]
[1740214119087,0.90235219,96367.0,96366.0,22.8070086]
[1740214121232,0.93559844,96367.0,96366.0,22.8070086]
[1740214121646,0.90235219,96367.0,96366.0,22.8070086]
[1740214122264,5.95235219,96367.0,96366.0,20.95209321]
[1740214122514,6.16873652,96367.0,96366.0,20.41298008]
[1740214122709,6.16873652,96367.0,96366.0,18.9012883]
[1740214122922,6.12857633,96367.0,96366.0,18.87008883]
[1740214123106,6.13597633,96367.0,96366.0,18.83888936]
[1740214123311,5.32855219,96367.0,96366.0,18.83788936]
[1740214123627,5.33555219,96367.0,96366.0,18.83788936]
[1740214124508,5.32855219,96367.0,96366.0,18.83688936]
[1740214124659,5.33555219,96367.0,96366.0,18.83688936]
[1740214125519,5.33555219,96367.0,96366.0,18.83149936]
[1740214128761,5.33555219,96367.0,96366.0,18.82249936]
[1740214129478,6.10275219,96367.0,96366.0,18.82249936]
[1740214134591,6.13597633,96367.0,96366.0,18.82249936]
[1740214136656,6.13597633,96367.0,96366.0,18.76849936]
[1740214137055,6.12857633,96367.0,96366.0,18.76849936]
[1740214137272,6.13597633,96367.0,96366.0,18.76849936]
[1740214144958,6.10275219,96367.0,96366.0,18.76849936]
[1740214145952,5.11955219,96367.0,96366.0,18.76849936]
[1740214146877,4.48435219,96367.0,96366.0,18.76849936]
[1740214147074,4.28265219,96367.0,96366.0,18.76849936]
[1740214147700,3.19475219,96367.0,96366.0,18.76849936]
[1740214147914,2.65755219,96367.0,96366.0,18.76849936]
[1740214148461,0.9227065,96367.0,96366.0,18.76849936]
[1740214148670,0.77776565,96367.0,96366.0,18.76849936]
[1740214148909,0.78516565,96367.0,96366.0,18.76849936]
[1740214149337,0.8197065,96367.0,96366.0,18.76849936]
[1740214153684,0.8123065,96367.0,96366.0,18.76849936]
[1740214153918,0.92235219,96367.0,96366.0,18.76849936]
[1740214154647,0.89495219,96367.0,96366.0,18.76849936]
[1740214154880,0.72669819,96367.0,96366.0,18.84639936]
[1740214155335,0.6016658,96367.0,96366.0,18.84639936]
[1740214155581,0.61620665,96367.0,96366.0,18.84639936]
[1740214155811,0.77186065,96367.0,96366.0,18.84639936]
[1740214156038,0.76486065,96367.0,96366.0,18.84639936]
[1740214156256,0.75786065,96367.0,96366.0,18.84639936]
[1740214156541,0.87450634,96367.0,96366.0,18.76849936]
[1740214156776,0.86750634,96367.0,96366.0,18.76849936]
[1740214157000,0.86650634,96367.0,96366.0,18.76849936]
[1740214157216,0.87350634,96367.0,96366.0,18.76849936]
[1740214157447,0.86750634,96367.0,96366.0,18.76849936]
[1740214157686,0.86650634,96367.0,96366.0,18.76849936]
[1740214158878,0.87350634,96367.0,96366.0,18.76849936]
[1740214162391,0.89350634,96367.0,96366.0,18.76849936]
[1740214170518,0.88610634,96367.0,96366.0,18.76849936]
[1740214170740,0.89350634,96367.0,96366.0,18.76849936]
[1740214173298,0.88610634,96367.0,96366.0,18.76849936]
[1740214173518,0.89350634,96367.0,96366.0,18.76849936]
[1740214176704,0.79086065,96367.0,96366.0,18.76849936]
[1740214177159,0.63520665,96367.0,96366.0,18.76849936]
[1740214177368,0.61520665,96367.0,96366.0,18.76849936]
[1740214177593,0.60780665,96367.0,96366.0,18.76849936]
[1740214177812,0.61520665,96367.0,96366.0,18.76849936]
[1740214178307,0.60780665,96367.0,96366.0,18.76849936]
[1740214178543,0.61520665,96367.0,96366.0,18.76849936]
[1740214182044,0.60780665,96367.0,96366.0,18.76849936]
[1740214182252,0.60238794,96367.0,96366.0,18.76849936]
[1740214182451,0.60982794,96367.0,96366.0,18.85169936]
[1740214182853,0.60238794,96367.0,96366.0,18.85169936]
[1740214183283,0.58784709,96367.0,96366.0,18.85169936]
[1740214183530,0.58784709,96367.0,96366.0,18.90159936]
[1740214183938,0.60238794,96367.0,96366.0,18.90159936]
[1740214184110,0.59538794,96367.0,96366.0,18.90159936]
[1740214184338,0.59538794,96367.0,96366.0,19.05725536]
[1740214184511,0.60238794,96367.0,96366.0,18.90159936]
[1740214184724,0.49974225,96367.0,96366.0,19.05725536]
[1740214184939,0.49274225,96367.0,96366.0,19.05725536]
[1740214185157,0.49074225,96367.0,96366.0,19.05725536]
[1740214185380,0.49574225,96367.0,96366.0,19.05725536]
[1740214185603,0.49574225,96367.0,96366.0,18.90159936]
[1740214186056,0.49874225,96367.0,96366.0,18.90159936]
[1740214189771,0.54687972,96367.0,96366.0,18.90159936]
[1740214190473,0.49874225,96367.0,96366.0,18.90159936]
[1740214192724,0.60138794,96367.0,96366.0,18.81839936]
[1740214193233,0.60138794,96367.0,96366.0,18.76849936]
[1740214208450,0.49874225,96367.0,96366.0,19.00355536]
[1740214208719,0.4842014,96367.0,96366.0,19.04895536]
[1740214209678,0.48674225,96367.0,96366.0,19.04895536]
[1740214210128,0.48674225,96367.0,96366.0,19.04995536]
[1740214211401,0.48674225,96367.0,96366.0,18.89429936]
[1740214211610,0.5355866,96367.0,96366.0,18.89429936]
[1740214212956,0.58938794,96367.0,96366.0,18.76949936]
[1740214213834,0.58938794,96367.0,96366.0,18.76849936]
[1740214214974,0.59038794,96367.0,96366.0,18.76849936]
[1740214216998,0.58938794,96367.0,96366.0,18.76849936]
[1740214217214,0.59138794,96367.0,96366.0,18.76849936]
[1740214217411,0.6547144,96367.0,96366.0,18.76849936]
[1740214230473,0.8933684,96367.0,96366.0,18.76849936]
[1740214231755,0.8913684,96367.0,96366.0,18.76849936]
[1740214231959,0.8883684,96367.0,96366.0,18.76849936]
[1740214232251,0.8913684,96367.0,96366.0,18.76849936]
[1740214232690,0.8933684,96367.0,96366.0,18.76849936]
[1740214232896,0.8883684,96367.0,96366.0,18.76849936]
[1740214233047,0.8963684,96367.0,96366.0,18.76849936]
[1740214233663,0.8883684,96367.0,96366.0,18.76849936]
[1740214233998,0.8933684,96367.0,96366.0,18.76849936]
[1740214235581,0.8973684,96367.0,96366.0,18.76849936]
[1740214236672,0.8923684,96367.0,96366.0,18.76849936]
[1740214236804,0.8883684,96367.0,96366.0,18.76849936]
[1740214237004,0.9023684,96367.0,96366.0,18.76849936]
[1740214241488,0.84204194,96367.0,96366.0,18.76849936]
[1740214243669,0.86204194,96367.0,96366.0,18.76849936]
[1740214244152,0.86741968,96367.0,96366.0,18.76849936]
[1740214245052,0.86041968,96367.0,96366.0,18.76849936]
[1740214245293,0.86741968,96367.0,96366.0,18.76849936]
[1740214245535,0.96306537,96367.0,96366.0,18.76849936]
[1740214245761,0.97006537,96367.0,96366.0,18.76849936]
[1740214246486,0.86741968,96367.0,96366.0,18.76849936]
[1740214254478,0.87485968,96367.0,96366.0,18.76849936]
[1740214257796,0.77185968,96367.0,96366.0,18.76849936]
[1740214258277,0.60876568,96367.0,96366.0,18.76849936]
[1740214258475,0.77185968,96367.0,96366.0,18.76849936]
[1740214258673,0.70463932,96367.0,96366.0,18.76849936]
[1740214258887,0.61620568,96367.0,96366.0,18.76849936]
[1740214259107,0.60166483,96367.0,96366.0,18.76849936]
[1740214259315,0.61620568,96367.0,96366.0,18.76849936]
[1740214260687,0.60920568,96367.0,96366.0,18.76849936]
[1740214260847,0.60220568,96367.0,96366.0,18.76849936]
[1740214261224,0.60920568,96367.0,96366.0,18.76849936]
[1740214261442,0.68687862,96367.0,96366.0,18.76849936]
[1740214261904,0.60238794,96367.0,96366.0,18.76849936]
[1740214262099,0.58784709,96367.0,96366.0,18.76849936]
[1740214262312,0.43784709,96367.0,96366.0,19.00145536]
[1740214262522,0.45238794,96367.0,96366.0,18.84579936]
[1740214262728,0.60238794,96367.0,96366.0,19.00145536]
[1740214263208,0.59638794,96367.0,96366.0,18.84579936]
[1740214263421,0.59838794,96367.0,96366.0,18.84579936]
[1740214263839,0.59638794,96367.0,96366.0,19.00145536]
[1740214264047,0.58938794,96367.0,96366.0,19.00145536]
[1740214264974,0.61014651,96367.0,96366.0,18.84579936]
[1740214265162,0.61214651,96367.0,96366.0,18.84579936]
[1740214265363,0.60614651,96367.0,96366.0,18.84579936]
[1740214265568,0.60614651,96367.0,96366.0,19.00145536]
[1740214265776,0.61114651,96367.0,96366.0,19.00145536]
[1740214265988,0.60914651,96367.0,96366.0,19.00145536]
[1740214266189,0.59238794,96367.0,96366.0,19.00145536]
[1740214266389,0.59338794,96367.0,96366.0,19.00145536]
[1740214267168,0.59038794,96367.0,96366.0,19.00145536]
[1740214267378,0.59238794,96367.0,96366.0,19.00145536]
[1740214267583,0.6528144,96367.0,96366.0,19.00145536]
[1740214268445,0.59238794,96367.0,96366.0,19.00145536]
[1740214269668,0.48974225,96367.0,96366.0,19.00145536]
[1740214275802,0.48974225,96367.0,96366.0,18.92415536]
[1740214277948,0.48974225,96367.0,96366.0,18.76849936]
[1740214278166,0.48974225,96367.0,96366.0,18.92415536]
[1740214278366,0.48974225,96367.0,96366.0,18.76849936]
[1740214278587,0.48974225,96367.0,96366.0,18.92415536]
[1740214278891,0.51803,96367.0,96366.0,18.92415536]
[1740214279532,0.51803,96367.0,96366.0,18.76849936]
[1740214279734,0.48974225,96367.0,96366.0,18.76849936]
[1740214284248,0.59238794,96367.0,96366.0,18.76849936]
[1740214315710,0.44238794,96367.0,96366.0,18.76849936]
[1740214315903,0.59238794,96367.0,96366.0,18.76849936]
[1740214320705,0.3252014,96367.0,96366.0,18.92415536]
[1740214320926,0.3252014,96367.0,96366.0,19.00655536]
[1740214321133,0.0047014,96367.0,96366.0,19.00655536]
[1740214321343,0.0047014,96367.0,96366.0,19.05645536]
[1740214321344,0.0027014,96367.0,96366.0,19.05645536]
[1740214321547,0.01724225,96367.0,96366.0,19.05645536]
[1740214321727,0.01924225,96367.0,96366.0,19.05645536]
[1740214322717,0.01824225,96367.0,96366.0,19.05645536]
[1740214323519,0.01624225,96367.0,96366.0,19.05645536]
[1740214323736,0.01624225,96367.0,96366.0,19.05745536]
[1740214325677,0.01624225,96367.0,96366.0,18.97505536]
[1740214330146,0.01624225,96367.0,96366.0,18.76949936]
[1740214330351,0.17189625,96367.0,96366.0,18.76949936]
[1740214330681,0.47186205,96367.0,96366.0,18.76949936]
[1740214331081,0.47930205,96367.0,96366.0,18.76949936]
[1740214331864,0.47186205,96367.0,96366.0,18.76949936]
[1740214332065,0.47930205,96367.0,96366.0,18.76949936]
[1740214333091,0.79980205,96367.0,96366.0,18.76949936]
[1740214333882,0.92670205,96367.0,96366.0,18.76949936]
[1740214334285,0.92670205,96367.0,96366.0,18.67908571]
[1740214334634,0.94670205,96367.0,96366.0,18.67908571]
[1740214334836,0.94670205,96367.0,96366.0,18.67808571]
[1740214335055,0.93926205,96367.0,96366.0,18.67808571]
[1740214335251,0.95170205,96367.0,96366.0,18.67808571]
[1740214335612,0.95710624,96367.0,96366.0,18.67808571]
[1740214336019,0.95366624,96367.0,96366.0,18.67808571]
[1740214336215,0.96110624,96367.0,96366.0,18.67808571]
[1740214336589,0.95710624,96367.0,96366.0,18.67808571]
[1740214336792,0.96410624,96367.0,96366.0,18.67808571]
[1740214337202,0.95910624,96367.0,96366.0,18.67808571]
[1740214337643,0.95910624,96367.0,96366.0,18.67075953]
[1740214337861,0.96610624,96367.0,96366.0,18.67075953]
[1740214338298,0.95910624,96367.0,96366.0,18.60642506]
[1740214338487,0.95910624,96367.0,96366.0,18.53164769]
[1740214338723,6.01610624,96367.0,96366.0,18.53164769]
[1740214338983,6.00910624,96367.0,96366.0,18.53164769]
[1740214339208,6.01610624,96367.0,96366.0,18.43641536]
[1740214339588,6.01610624,96367.0,96366.0,18.39495506]
[1740214340002,6.00210624,96367.0,96366.0,18.39495506]
[1740214340199,6.00210624,96367.0,96366.0,18.29158444]
[1740214340408,6.01610624,96367.0,96366.0,18.25069919]
[1740214340739,6.00910624,96367.0,96366.0,18.25069919]
[1740214341159,6.01610624,96367.0,96366.0,18.25069919]
[1740214341903,6.01610624,96367.0,96366.0,17.46948661]
[1740214342087,6.01610624,96367.0,96366.0,17.0964778]
[1740214342390,6.01610624,96367.0,96366.0,17.03874418]
[1740214345495,6.00866624,96367.0,96366.0,17.03874418]
[1740214345908,6.01610624,96367.0,96366.0,17.03874418]
[1740214346088,6.00866624,96367.0,96366.0,17.03874418]
[1740214346265,6.01610624,96367.0,96366.0,17.03874418]
[1740214349609,6.00866624,96367.0,96366.0,17.03874418]
[1740214349820,6.01610624,96367.0,96366.0,17.03874418]
[1740214386013,0.96610624,96367.0,96366.0,17.03874418]
[1740214386207,6.01610624,96367.0,96366.0,17.03874418]
[1740214389266,6.01610624,96367.0,96366.0,16.50076618]
[1740214396778,5.96346624,96367.0,96366.0,16.50076618]
[1740214396988,5.83444613,96367.0,96366.0,16.50076618]
[1740214397191,0.75190109,96367.0,96366.0,16.50076618]
[1740214398202,0.76644194,96367.0,96366.0,16.50076618]
[1740214398397,0.78644194,96367.0,96366.0,16.50076618]
[1740214402867,0.77904194,96367.0,96366.0,16.50076618]
[1740214403091,0.88908763,96367.0,96366.0,16.50076618]
[1740214410667,0.78644194,96367.0,96366.0,16.50076618]
[1740214419556,0.78644194,96367.0,96366.0,16.50088618]
[1740214431533,0.63078794,96367.0,96366.0,16.50088618]
[1740214432184,0.78644194,96367.0,96366.0,16.50088618]
[1740214434024,0.77904194,96367.0,96366.0,16.50088618]
[1740214434208,0.78644194,96367.0,96366.0,16.50088618]
[1740214434412,0.88908763,96367.0,96366.0,16.50088618]
[1740214435162,0.78644194,96367.0,96366.0,16.50088618]
[1740214436329,0.78644194,96367.0,96366.0,16.47187141]
[1740214439412,0.77904194,96367.0,96366.0,16.47187141]
[1740214439573,0.78644194,96367.0,96366.0,16.47187141]
[1740214440628,0.60338794,96367.0,96366.0,16.47187141]
[1740214440830,0.46078794,96367.0,96366.0,16.47187141]
[1740214441232,0.61078794,96367.0,96366.0,16.47187141]
[1740214441612,0.60378794,96367.0,96366.0,16.47187141]
[1740214441959,0.44678794,96367.0,96366.0,16.52067141]
[1740214442115,0.59678794,96367.0,96366.0,16.52067141]
[1740214442319,0.60378794,96367.0,96366.0,16.52067141]
[1740214442512,0.59678794,96367.0,96366.0,16.52067141]
[1740214442720,0.60378794,96367.0,96366.0,16.52067141]
[1740214443054,0.61078794,96367.0,96366.0,16.52067141]
[1740214443376,0.59678794,96367.0,96366.0,16.52067141]
[1740214443514,0.61078794,96367.0,96366.0,16.52067141]
[1740214445927,0.60338794,96367.0,96366.0,16.52067141]
[1740214446160,0.61078794,96367.0,96366.0,16.52067141]
[1740214447009,0.59638794,96367.0,96366.0,16.52067141]
[1740214447212,0.59638794,96367.0,96366.0,16.67632741]
[1740214447213,0.60378794,96367.0,96366.0,16.67632741]
[1740214448138,0.60378794,96367.0,96366.0,16.52067141]
[1740214448339,0.67237352,96367.0,96366.0,16.52067141]
[1740214448679,0.65837352,96367.0,96366.0,16.52067141]
[1740214448856,0.44438794,96367.0,96366.0,16.75592741]
[1740214449216,0.44638794,96367.0,96366.0,16.75592741]
[1740214449572,0.45138794,96367.0,96366.0,16.75592741]
[1740214449772,0.44438794,96367.0,96366.0,16.75592741]
[1740214449992,0.45538794,96367.0,96366.0,16.75592741]
[1740214450423,0.44538794,96367.0,96366.0,16.75592741]
[1740214450895,0.44738794,96367.0,96366.0,16.75592741]
[1740214451366,0.44138794,96367.0,96366.0,16.75592741]
[1740214451551,0.44138794,96367.0,96366.0,16.77700438]
[1740214451730,0.44538794,96367.0,96366.0,16.77700438]
[1740214457245,0.34274225,96367.0,96366.0,16.77700438]
[1740214469416,0.34274225,96367.0,96366.0,16.75592741]
[1740214474481,0.3282014,96367.0,96366.0,16.75592741]
[1740214475231,0.3242014,96367.0,96366.0,16.75592741]
[1740214475442,0.3282014,96367.0,96366.0,16.75592741]
[1740214475643,0.3262014,96367.0,96366.0,16.75592741]
[1740214476043,0.3282014,96367.0,96366.0,16.75592741]
[1740214477173,0.3262014,96367.0,96366.0,16.75592741]
[1740214477450,0.3222014,96367.0,96366.0,16.75592741]
[1740214477855,0.3262014,96367.0,96366.0,16.75592741]
[1740214478264,0.3222014,96367.0,96366.0,16.75592741]
[1740214478416,0.0017014,96367.0,96366.0,16.75592741]
[1740214478630,0.0027014,96367.0,96366.0,16.75592741]
[1740214482515,0.0027014,96367.0,96366.0,16.8585731]
[1740214482741,0.0027014,96367.0,96366.0,16.75592741]
[1740214483728,0.0017014,96367.0,96366.0,16.75692741]
[1740214483933,0.0017014,96367.0,96366.0,16.75592741]
[1740214484160,0.0017014,96367.0,96366.0,16.75792741]
[1740214484844,0.0017014,96367.0,96366.0,16.75992741]
[1740214497666,0.0017014,96367.0,96366.0,16.68032741]
[1740214502762,0.0017014,96367.0,96366.0,16.63152741]
[1740214505072,0.24799625,96367.0,96366.0,16.47587141]
[1740214505273,0.71686529,96367.0,96366.0,16.47587141]
[1740214506022,0.71686529,96367.0,96366.0,16.47387141]
[1740214506222,0.67114194,96367.0,96366.0,16.47387141]
[1740214506371,0.67114194,96367.0,96366.0,16.47587141]
[1740214506576,0.67114194,96367.0,96366.0,16.47387141]
[1740214506940,0.67114194,96367.0,96366.0,16.47287141]
[1740214507113,0.67114194,96367.0,96366.0,16.47487141]
[1740214507472,0.67114194,96367.0,96366.0,16.47287141]
[1740214508396,0.51548794,96367.0,96366.0,16.47287141]
[1740214509340,0.43938794,96367.0,96366.0,16.47287141]
[1740214510222,0.43938794,96367.0,96366.0,16.62852741]
[1740214510709,0.43938794,96367.0,96366.0,16.47287141]
[1740214511828,0.43938794,96367.0,96366.0,16.62852741]
[1740214516997,0.3222014,96367.0,96366.0,16.62852741]
[1740214517199,0.0017014,96367.0,96366.0,16.62852741]
[1740214524060,0.0017014,96367.0,96366.0,16.64917412]
[1740214526014,0.0017014,96367.0,96366.0,16.88091981]
[1740214526421,4e-07,96367.0,96366.0,16.88091981]
[1740214526863,4e-07,96367.0,96366.0,16.9835655]
[1740214527302,4e-07,96367.0,96366.0,16.9825655]
[1740214528446,0.0010004,96367.0,96366.0,16.9960626]
[1740214528802,4e-07,96367.0,96366.0,16.9930626]
[1740214529035,0.0010004,96367.0,96366.0,16.9980626]
[1740214529232,0.0020004,96367.0,96366.0,16.9980626]
[1740214529642,0.0010004,96367.0,96366.0,16.9960626]
[1740214530519,0.0020004,96367.0,96366.0,16.9980626]
[1740214531588,0.0020004,96367.0,96366.0,16.9875655]
[1740214531798,0.0020004,96367.0,96366.0,16.96691879]
[1740214533982,0.0020004,96367.0,96366.0,17.07631879]
[1740214538850,0.0020004,96367.0,96366.0,16.96691879]
[1740214543877,0.0020004,96367.0,96366.0,16.83781879]
[1740214547675,0.0020004,96367.0,96366.0,16.63252741]
[1740214548239,0.0852004,96367.0,96366.0,16.47687141]
[1740214548627,0.0852004,96367.0,96366.0,16.63252741]
[1740214548861,0.0842004,96367.0,96366.0,16.62952741]
[1740214549082,0.0842004,96367.0,96366.0,16.63152741]
[1740214550463,0.0832004,96367.0,96366.0,16.62952741]
[1740214551727,0.0842004,96367.0,96366.0,16.63152741]
[1740214552160,0.0832004,96367.0,96366.0,16.62952741]
[1740214552635,0.0832004,96367.0,96366.0,16.63052741]
[1740214561530,0.0832004,96367.0,96366.0,16.47487141]
[1740214561937,0.82654094,96367.0,96366.0,16.47487141]
[1740214562615,0.87214094,96367.0,96366.0,16.47487141]
[1740214562727,0.87214094,96367.0,96366.0,16.47387141]
[1740214562931,0.87314094,96367.0,96366.0,16.47187141]
[1740214563363,0.87614094,96367.0,96366.0,16.47187141]
[1740214563564,0.97878663,96367.0,96366.0,16.47187141]
[1740214564490,0.97778663,96367.0,96366.0,16.47187141]
[1740214564687,0.98278663,96367.0,96366.0,16.47187141]
[1740214565324,0.88014094,96367.0,96366.0,16.47187141]
[1740214567636,0.72448694,96367.0,96366.0,16.47187141]
[1740214567833,0.73188694,96367.0,96366.0,16.47187141]
[1740214568455,0.72448694,96367.0,96366.0,16.47187141]
[1740214568987,0.73188694,96367.0,96366.0,16.47187141]
[1740214569156,0.72448694,96367.0,96366.0,16.47187141]
[1740214569355,0.73188694,96367.0,96366.0,16.47187141]
[1740214569748,0.82081035,96367.0,96366.0,16.47187141]
[1740214570628,0.73188694,96367.0,96366.0,16.47187141]
[1740214588030,0.68628694,96367.0,96366.0,16.47187141]
[1740214589063,0.60308694,96367.0,96366.0,16.62752741]
[1740214590091,0.59508694,96367.0,96366.0,16.62752741]
[1740214590587,0.59908694,96367.0,96366.0,16.62752741]
[1740214591379,0.59168694,96367.0,96366.0,16.62752741]
[1740214592675,0.59068694,96367.0,96366.0,16.62752741]
[1740214593278,0.58768694,96367.0,96366.0,16.62752741]
[1740214593684,0.58868694,96367.0,96366.0,16.62752741]
[1740214597756,0.3215004,96367.0,96366.0,16.62752741]
[1740214598175,0.3205004,96367.0,96366.0,16.62752741]
[1740214598620,0.3205004,96367.0,96366.0,16.62852741]
[1740214598865,0.3205004,96367.0,96366.0,16.62752741]
[1740214599349,0.3205004,96367.0,96366.0,16.62952741]
[1740214600165,0.3215004,96367.0,96366.0,16.62952741]
[1740214600688,0.3205004,96367.0,96366.0,16.62952741]
[1740214604276,0.35272056,96367.0,96366.0,16.62952741]
[1740214605279,0.3205004,96367.0,96366.0,16.62952741]
[1740214611263,0.3205004,96367.0,96366.0,16.65029031]
[1740214620603,0.3205004,96367.0,96366.0,16.62952741]
[1740214626379,4e-07,96367.0,96366.0,16.62952741]
[1740214627789,0.0010004,96367.0,96366.0,16.62952741]
[1740214628190,0.0010004,96367.0,96366.0,16.7321731]
[1740214628359,0.0010004,96367.0,96366.0,16.7301731]
[1740214628563,0.0010004,96367.0,96366.0,16.7341731]
[1740214628964,0.0010004,96367.0,96366.0,16.62752741]
[1740214629164,4e-07,96367.0,96366.0,16.63152741]